[Event "55th Biel Festival ATO 2022"]
[Site "Biel"]
[Date "2022.07.22"]
[Round "9.7"]
[White "Wiesmann, Dominique"]
[Black "Sala, Matteo"]
[Result "1/2-1/2"]
[ECO "D26"]
[WhiteElo "1914"]
[BlackElo "1708"]
[Annotator "TA"]
[PlyCount "65"]
[EventDate "2022.07.13"]
[EventType "swiss"]
[EventCountry "SUI"]
[SourceTitle "playchess.com"]
[Source "ChessBase"]
[SourceQuality "1"]
[TimeControl "40/5400+30:1800+30"]

{[%evp 12,65,34,23,62,18,14,0,0,0,0,0,9,5,12,0,0,0,0,0,0,0,16,16,37,31,85,0,0,0,0,0,0,-23,-13,-17,12,9,76,51,71,0,0,0,-2,-107,-19,-20,0,0,0,0,0,0,0,0]} 1. Nf3 {[%emt 0:00:05]} c5 {[%emt 0:00:11]} 2. e3 {[%emt 0:00:13][%cal Be2e3,Be3d4][%mdl 32]} Nf6 {[%emt 0:14:51]} 3. d4 {[%emt 0:02:17]} cxd4 {[%emt 0:00:50]} 4. exd4 {[%emt 0:00:17]} d5 {[%emt 0:01:32]} 5. c4 {[%emt 0:00:17]} dxc4 {[%emt 0:05:20]} 6. Bxc4 {[%emt 0:00:21]} e6 {[%emt 0:03:33]} 7. Nc3 {[%emt 0:01:34]} Nbd7 {[%emt 0:02:27] D26: Queen's Gambit Accepted: 4 e3 e6 5 Bxc5 c5 sidelines.} 8. d5 {[%emt 0:04:48] White is more active.} exd5 {[%emt 0:07:41]} 9. Nxd5 {[%emt 0:03:36]} Nxd5 {[%emt 0:00:51]} 10. Qxd5 {[%emt 0:00:23][%csl Gc4][%cal Rd5f7] [#]} Bb4+ $1 {[%emt 0:01:10]} 11. Bd2 {[%emt 0:00:48][%csl Gc4][%cal Rd5f7]} Qe7+ {[%emt 0:01:51] [#]} 12. Be2 $146 {[%emt 0:00:26]} ({Predecessor:} 12. Kd1 Bxd2 13. Qxd2 O-O 14. Re1 Qf6 15. Re3 Nb6 16. Bb3 Bf5 17. Ke1 {½-½ (34) Miret Montane,J (2155)-Castany Pampalona,A (2010) Spain 1997}) 12... O-O {[%emt 0:03:19]} 13. Bxb4 {[%emt 0:00:12]} Qxb4+ {[%emt 0:00:07]} 14. Qd2 {[%emt 0:00:05]} Qxd2+ {[%emt 0:01:09]} 15. Nxd2 {[%emt 0:01:43]} Re8 {[%emt 0:00:07]} 16. f3 {[%emt 0:01:13]} b6 {[%emt 0:06:27]} 17. Ne4 {[%emt 0:03:08]} f5 {[%emt 0:05:21]} 18. Nd6 {[%emt 0:03:15][%csl LRe8,LRf5]} Re6 {[%emt 0:00:51]} (18... Re5 $14 19. Kf2 Nf6) 19. Nxc8 {[%emt 0:01:14]} (19. Nxf5 $16 Ba6 20. Nd4) 19... Rxc8 $11 {[%emt 0:00:12]} 20. Rd1 {[%emt 0:02:35]} Ne5 {[%emt 0:12:27] aiming for ...Rc2.} (20... Rc2 $5 21. Rd2 Rc1+ 22. Rd1 Rc7 $11) 21. O-O {[%emt 0:11:01]} Rc2 {[%emt 0:00:41]} 22. Rfe1 {[%emt 0:00:10] Hoping for Bd3.} Kf7 $36 {[%emt 0:06:50][%mdl 2048] Black fights for an advantage.} (22... Rxb2 $2 {[#]} 23. Bc4 $1 {[%mdl 512]} Nxc4 24. Rxe6 $18) 23. b4 {[%emt 0:11:50]} Ke7 {[%emt 0:07:29]} (23... Rxa2 $2 24. f4 Ra4 25. fxe5 Rxe5 26. b5 $18) 24. f4 {[%emt 0:03:59]} Nc6 {[%emt 0:10:20]} (24... Ng6 $11 25. Bd3 Rc7) 25. Bd3 $16 {[%emt 0:02:06][%csl LRc2,LRf5]} Rb2 {[%emt 0:01:52]} 26. b5 {[%emt 0:04:44]} (26. Bxf5 $16 Rxe1+ 27. Rxe1+ Kf6 28. Bxh7) 26... Nd4 $11 {[%emt 0:01:23]} 27. Rxe6+ {[%emt 0:01:04]} Nxe6 {[%emt 0:00:19][%mdl 4096] Endgame KRB-KRN} 28. g3 {[%emt 0:02:57]} (28. Bxf5 $11 Nxf4 29. g3) 28... g6 {[%emt 0:00:56]} ({But not} 28... Rxa2 29. Re1 Rd2 30. Bxf5 $16) (28... Nd4 $17 {next ...Nf3+ is good for Black.} 29. Rc1 Rd2) 29. Bc4 {[%emt 0:03:25] And now Re1 would win. The position is equal.} Nc7 {[%emt 0:02:01]} 30. Re1+ {[%emt 0:05:28]} Kf6 {[%emt 0:00:52]} 31. Rd1 {[%emt 0:02:07] Threatens to win with Rd7.} Ke7 {[%emt 0:00:40] Prevents Rd7+.} 32. Re1+ {[%emt 0:02:29]} Kf6 {[%emt 0:00:09]} 33. Rd1 {[%emt 0:03:35] Weighted Error Value: White=0.19 (very precise) /Black=0.20 (precise)} 1/2-1/2

[Event "55th Biel Festival ATO 2022"]
[Site "Biel"]
[Date "2022.07.22"]
[Round "9.8"]
[White "Wenger, Arejou"]
[Black "Thode Gilda"]
[Result "1-0"]
[ECO "C06"]
[WhiteElo "1797"]
[BlackElo "1951"]
[Annotator "TA"]
[PlyCount "51"]
[EventDate "2022.07.13"]
[EventType "swiss"]
[EventCountry "SUI"]
[SourceTitle "playchess.com"]
[Source "ChessBase"]
[SourceQuality "1"]
[TimeControl "40/5400+30:1800+30"]

{[%evp 28,51,42,19,0,47,51,42,23,18,134,152,152,156,142,151,148,109,776,762,677,677,29996,29997,29997,29998]} 1. e4 {[%emt 0:00:06]} e6 {[%emt 0:06:34]} 2. d4 {[%emt 0:00:04]} d5 {[%emt 0:00:21]} 3. Nd2 {[%emt 0:00:06]} Nf6 {[%emt 0:00:17]} 4. e5 {[%emt 0:00:13]} Nfd7 {[%emt 0:00:27]} 5. Bd3 {[%emt 0:00:17]} c5 {[%emt 0:00:29]} 6. c3 {[%emt 0:00:06]} Nc6 {[%emt 0:00:37]} 7. Ne2 {[%emt 0:00:09]} cxd4 {[%emt 0:02:05]} 8. cxd4 {[%emt 0:00:07]} f6 {[%emt 0:01:34]} 9. Nf4 {[%emt 0:00:53]} Nxd4 {[%emt 0:08:25]} 10. Qh5+ {[%emt 0:00:33]} Ke7 {[%emt 0:00:14]} 11. exf6+ {[%emt 0:01:22]} Nxf6 {[%emt 0:01:54]} 12. Ng6+ {[%emt 0:00:38]} hxg6 {[%emt 0:01:43]} 13. Qxh8 {[%emt 0:00:06]} Kf7 {[%emt 0:00:22]} 14. O-O {[%emt 0:00:41]} e5 {[%emt 0:01:54]} 15. Nf3 {[%emt 0:04:14]} Nxf3+ {[%emt 0:01:06] C06: French Tarrasch: 3...Nf6 4 e5 Nfd7 5 Bd3 main lines.} 16. gxf3 {[%emt 0:00:07]} Bf5 {[%emt 0:02:00]} 17. Bxf5 {[%emt 0:00:41]} gxf5 {[%emt 0:00:09] White is slightly better.} 18. Bg5 {[%emt 0:06:09]} Qb6 {[%emt 0:44:59]} (18... Bc5 $11 {remains equal.} 19. Qh3 Qd7) 19. Rac1 {[%emt 0:11:49]} Rd8 {[%emt 0:18:57]} 20. Bxf6 {[%emt 0:14:54]} Kxf6 {[%emt 0:03:04] [#]} 21. Kh1 $146 {[%emt 0:04:06] Hoping for Rg1.} ({Predecessor:} 21. Rc2 d4 22. Rd1 Be7 23. Qh4+ Ke6 24. Qg3 Bf6 25. Rcd2 Qa6 26. f4 e4 27. Qb3+ {0-1 (43) Guzman,A (1727)-Saldano Dayer,H (2404) Neuquen 2022}) 21... Be7 {[%emt 0:02:03] [#]} 22. Qh7 {[%emt 0:09:08] And now Rg1 would win.} Qxb2 $2 {[%emt 0:01:41][%mdl 8192] This costs Black the game.} (22... Ke6 $16) 23. Rg1 $18 {[%emt 0:04:46][%csl Gg1][%cal Rh7g6,Bf1g1,Bg1g6,Bg6f6][%mdl 32]} Ke6 {[%emt 0:00:07]} 24. Rc7 {[%emt 0:10:42] Intending Rg6+ and mate.} Qxf2 {[%emt 0:00:55]} 25. Rg6+ {[%emt 0:00:44]} ({Worse is} 25. Qg6+ Bf6 $11) 25... Bf6 {[%emt 0:00:30] [#]} 26. Rxf6+ $1 {[%emt 0:00:07][%mdl 576] Discovered Attack, Remove Defender.  Weighted Error Value: White=0.02 (flawless) /Black=1.18} 1-0